[Event "Blixt-SM 2025"]
[Site "Norrköping, Sweden"]
[Date "2025.09.26"]
[Round "7.2"]
[White "Berovski, Krum"]
[Black "Carlsson, Ludvig"]
[Result "0-1"]
[TimeControl "3 min + 2 sec/move"]
[BlackTitle "IM"]
[WhiteElo "2344"]
[BlackElo "2389"]

1. d4 {[%clk 00:03:02]} {[%emt 00:00:02]} d5 {[%clk 00:03:03]} {[%emt
00:00:02]} 2. c4 {[%clk 00:03:02]} {[%emt 00:00:01]} e5 {[%clk 00:03:04]} 3.
dxe5 {[%clk 00:03:02]} {[%emt 00:00:04]} Ne7 {[%clk 00:03:05]} {[%emt
00:00:01]} 4. e3 {[%clk 00:02:46]} {[%emt 00:00:18]} Nbc6 {[%clk 00:03:05]}
{[%emt 00:00:01]} 5. Nf3 {[%clk 00:02:47]} {[%emt 00:00:02]} Bg4 {[%clk
00:02:57]} {[%emt 00:00:10]} 6. cxd5 {[%clk 00:02:32]} {[%emt 00:00:17]} Qxd5
{[%clk 00:02:57]} {[%emt 00:00:02]} 7. Qxd5 {[%clk 00:02:31]} {[%emt 00:00:03]}
Nxd5 {[%clk 00:02:57]} {[%emt 00:00:02]} 8. Bb5 {[%clk 00:02:30]} {[%emt
00:00:02]} Ndb4 {[%clk 00:02:54]} {[%emt 00:00:05]} 9. Na3 {[%clk 00:02:20]}
{[%emt 00:00:12]} O-O-O {[%clk 00:02:54]} {[%emt 00:00:02]} 10. Bxc6 {[%clk
00:01:56]} {[%emt 00:00:27]} Nxc6 {[%clk 00:02:47]} {[%emt 00:00:08]} 11. Nc4
{[%clk 00:01:32]} {[%emt 00:00:26]} Bb4+ {[%clk 00:02:47]} {[%emt 00:00:03]} 12.
Ke2 {[%clk 00:01:27]} {[%emt 00:00:07]} b5 {[%clk 00:02:41]} {[%emt 00:00:08]}
13. Ncd2 {[%clk 00:01:11]} {[%emt 00:00:18]} Nxe5 {[%clk 00:02:41]} {[%emt
00:00:02]} 14. h3 {[%clk 00:01:11]} {[%emt 00:00:03]} Bh5 {[%clk 00:02:29]}
{[%emt 00:00:14]} 15. g4 {[%clk 00:00:57]} {[%emt 00:00:16]} Nxf3 {[%clk
00:02:29]} {[%emt 00:00:02]} 16. Nxf3 {[%clk 00:00:55]} {[%emt 00:00:04]} Bg6
{[%clk 00:02:30]} 17. Nd4 {[%clk 00:00:23]} {[%emt 00:00:34]} Be4 {[%clk
00:02:14]} {[%emt 00:00:17]} 18. f3 {[%clk 00:00:21]} {[%emt 00:00:05]} Bd5
{[%clk 00:02:14]} {[%emt 00:00:02]} 19. b3 {[%clk 00:00:13]} {[%emt 00:00:09]}
Rhe8 {[%clk 00:02:00]} {[%emt 00:00:16]} 20. Bb2 {[%clk 00:00:14]} {[%emt
00:00:02]} a6 {[%clk 00:01:55]} {[%emt 00:00:07]} 21. Rac1 {[%clk 00:00:14]}
{[%emt 00:00:01]} Kb7 {[%clk 00:01:55]} {[%emt 00:00:02]} 22. Rc2 {[%clk
00:00:15]} {[%emt 00:00:02]} c5 {[%clk 00:01:53]} {[%emt 00:00:04]} 23. Nf5
{[%clk 00:00:15]} {[%emt 00:00:02]} g6 {[%clk 00:01:49]} {[%emt 00:00:05]} 24.
Ng3 {[%clk 00:00:13]} {[%emt 00:00:04]} c4 {[%clk 00:01:49]} {[%emt 00:00:03]}
25. bxc4 {[%clk 00:00:08]} {[%emt 00:00:07]} Bxc4+ {[%emt 00:00:02]} 26. Kf2
Bc5 {[%clk 00:01:49]} {[%emt 00:00:02]} 27. Ne4 {[%clk 00:00:08]} {[%emt
00:00:04]} Bb6 {[%clk 00:01:50]} 28. a4 {[%clk 00:00:08]} {[%emt 00:00:02]} f5
{[%clk 00:01:49]} {[%emt 00:00:04]} 29. axb5 {[%clk 00:00:08]} {[%emt
00:00:02]} axb5 {[%clk 00:01:48]} {[%emt 00:00:02]} 30. gxf5 {[%clk 00:00:07]}
{[%emt 00:00:03]} gxf5 {[%clk 00:01:48]} {[%emt 00:00:01]} 31. Nf6 {[%clk
00:00:08]} {[%emt 00:00:01]} Bxe3+ {[%emt 00:00:51]} 32. Kg3 {[%clk 00:00:09]}
Re7 {[%clk 00:00:30]} {[%emt 00:00:32]} 33. f4 {[%clk 00:00:06]} {[%emt
00:00:06]} Rd3 {[%clk 00:00:20]} {[%emt 00:00:12]} 34. Rc3 {[%clk 00:00:06]}
{[%emt 00:00:03]} Rxc3 {[%clk 00:00:12]} {[%emt 00:00:09]} 35. Bxc3 {[%clk
00:00:07]} Bc5 {[%clk 00:00:11]} {[%emt 00:00:02]} 36. Kh4 {[%clk 00:00:07]}
{[%emt 00:00:02]} Re3 {[%clk 00:00:11]} {[%emt 00:00:02]} 37. Be5 {[%clk
00:00:08]} b4 {[%clk 00:00:12]} {[%emt 00:00:02]} 38. Kg5 {[%clk 00:00:09]} Bd3
{[%clk 00:00:12]} {[%emt 00:00:02]} 39. Nd5 {[%clk 00:00:10]} {[%emt 00:00:01]}
Rg3+ {[%clk 00:00:11]} {[%emt 00:00:02]} 40. Kh6 {[%clk 00:00:11]} {[%emt
00:00:02]} b3 {[%clk 00:00:11]} {[%emt 00:00:02]} 41. Kxh7 {[%clk 00:00:12]}
{[%emt 00:00:02]} Rg2 {[%clk 00:00:09]} {[%emt 00:00:03]} 42. Rc1 {[%clk
00:00:13]} {[%emt 00:00:02]} Bf2 {[%clk 00:00:03]} {[%emt 00:00:08]} 43. Rc7+
{[%clk 00:00:14]} {[%emt 00:00:01]} Ka6 {[%clk 00:00:05]} 44. Rc6+ {[%clk
00:00:15]} Kb5 {[%clk 00:00:06]} {[%emt 00:00:01]} 45. Rc8 {[%clk 00:00:16]}
Ka4 {[%clk 00:00:06]} {[%emt 00:00:01]} 46. Rb8 {[%clk 00:00:17]} {[%emt
00:00:01]} Bc5 {[%clk 00:00:07]} {[%emt 00:00:01]} 47. Nc3+ {[%clk 00:00:18]}
Ka3 {[%clk 00:00:08]} {[%emt 00:00:01]} 48. Nb5+ {[%clk 00:00:19]} Bxb5 49.
Rxb5 {[%clk 00:00:20]} Bb4 {[%clk 00:00:09]} {[%emt 00:00:02]} 50. Rb7 {[%clk
00:00:19]} {[%emt 00:00:03]} b2 {[%clk 00:00:10]} {[%emt 00:00:01]} 51. Bxb2+
{[%clk 00:00:19]} {[%emt 00:00:01]} Rxb2 {[%clk 00:00:11]} 52. Kg6 {[%clk
00:00:20]} Rh2 {[%clk 00:00:12]} {[%emt 00:00:02]} 53. Rh7 {[%clk 00:00:21]}
Bd2 {[%clk 00:00:12]} {[%emt 00:00:01]} 54. Kxf5 {[%clk 00:00:22]} {[%emt
00:00:01]} Rf2 {[%clk 00:00:13]} 55. Rh4 {[%clk 00:00:23]} {[%emt 00:00:02]}
Kb4 {[%clk 00:00:15]} {[%emt 00:00:01]} 56. Ke4 {[%clk 00:00:24]} Kc5 {[%clk
00:00:16]} {[%emt 00:00:01]} 57. f5 {[%clk 00:00:24]} {[%emt 00:00:01]} Kd6
{[%clk 00:00:17]} 58. Rh7 {[%clk 00:00:25]} Rf4+ {[%clk 00:00:18]} {[%emt
00:00:02]} 59. Kd3 {[%clk 00:00:27]} Ba5 {[%clk 00:00:19]} {[%emt 00:00:01]} 60.
Rh5 {[%clk 00:00:27]} {[%emt 00:00:02]} Bd8 {[%clk 00:00:19]} {[%emt 00:00:02]}
61. Ke3 {[%clk 00:00:28]} Rf1 {[%clk 00:00:20]} 62. Ke4 {[%clk 00:00:29]}
{[%emt 00:00:01]} Bf6 {[%clk 00:00:17]} {[%emt 00:00:05]} 63. Rh6 {[%clk
00:00:30]} Ke7 {[%clk 00:00:17]} {[%emt 00:00:02]} 64. Rh7+ {[%clk 00:00:31]}
Kf8 {[%clk 00:00:18]} 65. h4 {[%clk 00:00:32]} {[%emt 00:00:02]} Re1+ {[%clk
00:00:18]} {[%emt 00:00:01]} 66. Kf3 {[%clk 00:00:33]} {[%emt 00:00:02]} Ra1
{[%clk 00:00:19]} 67. h5 {[%clk 00:00:33]} {[%emt 00:00:01]} Ra4 {[%clk
00:00:18]} {[%emt 00:00:03]} 68. Kg3 {[%clk 00:00:34]} {[%emt 00:00:02]} Bg7
{[%clk 00:00:16]} {[%emt 00:00:04]} 69. h6 {[%clk 00:00:34]} {[%emt 00:00:02]}
Be5+ {[%clk 00:00:16]} {[%emt 00:00:02]} 70. Kh3 {[%clk 00:00:34]} {[%emt
00:00:02]} Bf6 {[%clk 00:00:16]} {[%emt 00:00:01]} 71. Kg3 {[%clk 00:00:34]}
{[%emt 00:00:02]} Rh4 {[%clk 00:00:15]} {[%emt 00:00:02]} 72. Rb7 {[%clk
00:00:32]} {[%emt 00:00:04]} Rxh6 {[%clk 00:00:15]} {[%emt 00:00:02]} 73. Kf3
{[%clk 00:00:32]} {[%emt 00:00:02]} Rh4 {[%clk 00:00:16]} 74. Kg3 {[%clk
00:00:34]} {[%emt 00:00:01]} Rc4 {[%clk 00:00:17]} 75. Kf3 {[%clk 00:00:35]}
Be7 {[%clk 00:00:18]} {[%emt 00:00:02]} 76. Ke3 {[%clk 00:00:35]} {[%emt
00:00:02]} Kf7 {[%clk 00:00:19]} {[%emt 00:00:01]} 77. Kf3 {[%clk 00:00:36]}
Rc6 {[%clk 00:00:19]} {[%emt 00:00:02]} 78. Ke4 {[%clk 00:00:37]} {[%emt
00:00:02]} Kf6 {[%clk 00:00:20]} 79. Ra7 {[%clk 00:00:37]} {[%emt 00:00:02]}
Rc4+ {[%clk 00:00:21]} {[%emt 00:00:01]} 80. Kd3 {[%clk 00:00:39]} Rh4 {[%clk
00:00:21]} {[%emt 00:00:02]} 81. Ra5 {[%clk 00:00:40]} {[%emt 00:00:01]} Bd6
{[%clk 00:00:22]} 82. Ra6 {[%clk 00:00:41]} {[%emt 00:00:01]} Ke5 {[%clk
00:00:22]} 83. f6 {[%clk 00:00:42]} Rf4 {[%clk 00:00:22]} {[%emt 00:00:03]} 84.
Ra5+ {[%clk 00:00:39]} {[%emt 00:00:05]} Ke6 {[%clk 00:00:23]} {[%emt
00:00:01]} 85. Ke3 {[%clk 00:00:39]} {[%emt 00:00:03]} Rxf6 {[%clk 00:00:24]}
{[%emt 00:00:02]} 86. Kd3 {[%clk 00:00:40]} Rh6 {[%clk 00:00:23]} {[%emt
00:00:03]} 87. Rb5 {[%clk 00:00:41]} Rh4 {[%clk 00:00:23]} {[%emt 00:00:02]} 88.
Ke3 {[%clk 00:00:42]} {[%emt 00:00:01]} Be5 {[%clk 00:00:24]} 89. Kd3 {[%clk
00:00:43]} Kf5 {[%clk 00:00:23]} {[%emt 00:00:03]} 90. Ke3 {[%clk 00:00:44]}
Rh3+ {[%clk 00:00:24]} 91. Kf2 {[%clk 00:00:45]} Ke4 {[%clk 00:00:24]} {[%emt
00:00:04]} 92. Kg2 {[%clk 00:00:46]} {[%emt 00:00:01]} Rh2+ {[%clk 00:00:24]}
{[%emt 00:00:02]} 93. Kg1 {[%clk 00:00:46]} Ra2 {[%clk 00:00:25]} 94. Rb3
{[%clk 00:00:47]} {[%emt 00:00:02]} Bd4+ {[%clk 00:00:25]} {[%emt 00:00:03]} 95.
Kh1 {[%clk 00:00:48]} Be3 {[%clk 00:00:22]} {[%emt 00:00:05]} 96. Rb1 {[%clk
00:00:45]} {[%emt 00:00:05]} Kf3 {[%clk 00:00:22]} {[%emt 00:00:01]} 97. Rf1+
{[%clk 00:00:46]} Kg4 {[%clk 00:00:12]} {[%emt 00:00:12]} 98. Rf7 {[%clk
00:00:44]} {[%emt 00:00:04]} Bf4 {[%clk 00:00:12]} {[%emt 00:00:03]} 99. Rg7+
{[%clk 00:00:43]} {[%emt 00:00:03]} Kf3 {[%clk 00:00:12]} {[%emt 00:00:02]} 100.
Rg2 {[%clk 00:00:36]} {[%emt 00:00:09]} Ra8 {[%clk 00:00:05]} {[%emt 00:00:09]}
101. Rf2+ {[%clk 00:00:36]} {[%emt 00:00:02]} Kg4 {[%clk 00:00:05]} {[%emt
00:00:02]} 102. Kg2 {[%clk 00:00:36]} {[%emt 00:00:02]} Ra3 {[%clk 00:00:05]}
{[%emt 00:00:02]} 103. Rc2 {[%clk 00:00:36]} {[%emt 00:00:01]} Rg3+ {[%clk
00:00:05]} {[%emt 00:00:02]} 104. Kf2 {[%clk 00:00:38]} {[%emt 00:00:01]} Rh3
{[%clk 00:00:07]} 105. Kg1 {[%clk 00:00:39]} {[%emt 00:00:02]} Be3+ {[%clk
00:00:07]} {[%emt 00:00:01]} 106. Kg2 {[%clk 00:00:39]} Rg3+ {[%clk 00:00:08]}
{[%emt 00:00:01]} 107. Kh1 {[%clk 00:00:41]} Kf3 {[%clk 00:00:08]} {[%emt
00:00:03]} 108. Kh2 {[%clk 00:00:37]} {[%emt 00:00:06]} Rg8 {[%clk 00:00:08]}
{[%emt 00:00:02]} 109. Kh1 {[%clk 00:00:35]} {[%emt 00:00:04]} Bd4 {[%clk
00:00:07]} {[%emt 00:00:02]} 110. Rd2 {[%clk 00:00:34]} {[%emt 00:00:03]} Rh8+
{[%clk 00:00:06]} {[%emt 00:00:04]} 111. Rh2 {[%clk 00:00:35]} {[%emt
00:00:01]} Ra8 {[%clk 00:00:06]} {[%emt 00:00:01]} 112. Rh3+ {[%clk 00:00:35]}
{[%emt 00:00:02]} Kg4 {[%clk 00:00:07]} {[%emt 00:00:01]} 113. Rd3 {[%clk
00:00:36]} Be5 {[%clk 00:00:06]} {[%emt 00:00:03]} 114. Kg2 {[%clk 00:00:37]}
Ra2+ {[%clk 00:00:07]} {[%emt 00:00:01]} 115. Kh1 {[%clk 00:00:38]} Bf4 {[%clk
00:00:06]} {[%emt 00:00:04]} 116. Rb3 {[%clk 00:00:37]} {[%emt 00:00:04]} Bg3
{[%clk 00:00:06]} {[%emt 00:00:02]} 117. Rb4+ {[%clk 00:00:35]} {[%emt
00:00:04]} Kh3 {[%clk 00:00:07]} {[%emt 00:00:01]} 118. Rb1 {[%clk 00:00:36]}
Rc2 {[%clk 00:00:07]} {[%emt 00:00:03]} 119. Rd1 {[%clk 00:00:37]} Re2 {[%clk
00:00:07]} {[%emt 00:00:02]} 120. Rb1 {[%clk 00:00:38]} Rd2 {[%clk 00:00:09]}
121. Rf1 {[%clk 00:00:37]} {[%emt 00:00:02]} Bf2 {[%clk 00:00:07]} {[%emt
00:00:04]} 122. Rb1 {[%clk 00:00:36]} {[%emt 00:00:03]} Rc2 {[%clk 00:00:05]}
{[%emt 00:00:04]} 123. Rb3+ {[%clk 00:00:35]} {[%emt 00:00:03]} Bg3 {[%emt
00:00:01]} 124. Rb1 Re2 {[%clk 00:00:06]} {[%emt 00:00:02]} 125. Rd1 {[%clk
00:00:38]} Ra2 {[%clk 00:00:07]} {[%emt 00:00:01]} 126. Rb1 {[%clk 00:00:39]}
{[%emt 00:00:01]} Rh2+ {[%clk 00:00:06]} {[%emt 00:00:03]} 127. Kg1 {[%clk
00:00:39]} Bf2+ {[%clk 00:00:08]} 128. Kf1 {[%clk 00:00:40]} {[%emt 00:00:01]}
Rh1+ {[%clk 00:00:09]} {[%emt 00:00:02]} 0-1

[Event "Blixt-SM 2025"]
[Site "Norrköping, Sweden"]
[Date "2025.09.26"]
[Round "8.8"]
[White "Smith, Axel"]
[Black "Wernberg, Hugo"]
[Result "1/2-1/2"]
[TimeControl "3 min + 2 sec/move"]
[WhiteTitle "GM"]
[BlackTitle "FM"]
[WhiteElo "2431"]
[BlackElo "2285"]

1. c4 {[%clk 00:03:04]} Nf6 {[%clk 00:03:00]} {[%emt 00:00:05]} 2. Nc3 {[%clk
00:03:05]} e6 {[%clk 00:03:00]} {[%emt 00:00:02]} 3. e4 {[%clk 00:03:04]}
{[%emt 00:00:02]} d5 {[%clk 00:03:01]} 4. cxd5 {[%clk 00:03:05]} {[%emt
00:00:02]} exd5 {[%clk 00:03:01]} {[%emt 00:00:02]} 5. e5 {[%clk 00:03:05]}
{[%emt 00:00:02]} d4 {[%clk 00:02:39]} {[%emt 00:00:24]} 6. exf6 {[%clk
00:03:06]} {[%emt 00:00:02]} dxc3 {[%clk 00:02:40]} 7. Bb5+ {[%clk 00:03:07]}
c6 {[%clk 00:02:37]} {[%emt 00:00:06]} 8. Qe2+ {[%clk 00:03:08]} {[%emt
00:00:01]} Be6 {[%clk 00:02:36]} {[%emt 00:00:02]} 9. Bc4 {[%clk 00:03:09]}
cxd2+ {[%clk 00:02:01]} {[%emt 00:00:37]} 10. Bxd2 {[%clk 00:03:09]} {[%emt
00:00:02]} Qxf6 {[%clk 00:02:00]} {[%emt 00:00:03]} 11. Nf3 {[%clk 00:02:49]}
{[%emt 00:00:22]} Be7 {[%clk 00:01:15]} {[%emt 00:00:47]} 12. Bc3 {[%clk
00:01:48]} {[%emt 00:01:03]} Bxc4 {[%clk 00:01:05]} {[%emt 00:00:12]} 13. Qxc4
{[%clk 00:01:49]} Qe6+ {[%clk 00:01:06]} 14. Qxe6 {[%clk 00:01:49]} {[%emt
00:00:02]} fxe6 {[%clk 00:01:07]} 15. Bxg7 {[%clk 00:01:46]} {[%emt 00:00:06]}
Rg8 {[%clk 00:01:08]} {[%emt 00:00:01]} 16. Be5 {[%clk 00:01:46]} {[%emt
00:00:02]} Nd7 {[%clk 00:00:54]} {[%emt 00:00:16]} 17. Bg3 {[%clk 00:01:43]}
{[%emt 00:00:05]} O-O-O {[%clk 00:00:46]} {[%emt 00:00:11]} 18. O-O-O {[%clk
00:01:37]} {[%emt 00:00:07]} Nc5 {[%clk 00:00:26]} {[%emt 00:00:22]} 19. Kc2
{[%clk 00:01:27]} {[%emt 00:00:12]} Rd5 {[%clk 00:00:22]} {[%emt 00:00:06]} 20.
Rhe1 {[%clk 00:01:21]} {[%emt 00:00:08]} Rgd8 {[%clk 00:00:17]} {[%emt
00:00:07]} 21. Rxd5 {[%clk 00:01:17]} {[%emt 00:00:06]} cxd5 {[%clk 00:00:18]}
22. Nd4 {[%clk 00:01:00]} {[%emt 00:00:19]} Kd7 {[%clk 00:00:19]} {[%emt
00:00:02]} 23. Rd1 {[%clk 00:00:27]} {[%emt 00:00:34]} Rc8 {[%clk 00:00:18]}
{[%emt 00:00:03]} 24. Kb1 {[%clk 00:00:29]} Bf6 {[%clk 00:00:15]} {[%emt
00:00:04]} 25. Nf3 {[%clk 00:00:25]} {[%emt 00:00:06]} Ne4 {[%clk 00:00:13]}
{[%emt 00:00:04]} 26. Nd2 {[%clk 00:00:17]} {[%emt 00:00:10]} Nxg3 {[%clk
00:00:13]} {[%emt 00:00:03]} 27. hxg3 {[%clk 00:00:17]} {[%emt 00:00:02]} Rc6
{[%clk 00:00:09]} {[%emt 00:00:06]} 28. Rh1 {[%clk 00:00:17]} {[%emt 00:00:02]}
Kd6 {[%clk 00:00:04]} {[%emt 00:00:08]} 29. Rxh7 {[%clk 00:00:17]} {[%emt
00:00:02]} Bd4 {[%clk 00:00:04]} {[%emt 00:00:01]} 30. f4 {[%clk 00:00:11]}
{[%emt 00:00:08]} Be3 {[%clk 00:00:05]} {[%emt 00:00:01]} 31. Nb3 {[%clk
00:00:13]} d4 {[%clk 00:00:04]} {[%emt 00:00:02]} 32. Rh8 {[%clk 00:00:09]}
{[%emt 00:00:06]} Kd7 {[%clk 00:00:05]} {[%emt 00:00:01]} 33. Rh7+ {[%clk
00:00:09]} {[%emt 00:00:02]} Kd6 {[%clk 00:00:06]} 34. Rh1 {[%clk 00:00:10]}
{[%emt 00:00:01]} Kd5 {[%clk 00:00:07]} {[%emt 00:00:01]} 35. Rh7 {[%clk
00:00:08]} {[%emt 00:00:04]} Kd6 {[%clk 00:00:06]} {[%emt 00:00:04]} 36. Rh1
{[%clk 00:00:07]} {[%emt 00:00:02]} Kd5 {[%clk 00:00:07]} 37. Rh7 {[%clk
00:00:08]} Kd6 {[%clk 00:00:08]} 38. Rh8 {[%clk 00:00:08]} {[%emt 00:00:02]}
Kd7 {[%clk 00:00:09]} {[%emt 00:00:01]} 39. Rh1 {[%clk 00:00:09]} Kd6 {[%clk
00:00:10]} 40. Rh8 {[%clk 00:00:04]} {[%emt 00:00:07]} Kd7 {[%clk 00:00:11]}
{[%emt 00:00:01]} 1/2-1/2

[Event "Blixt-SM 2025"]
[Site "Norrköping, Sweden"]
[Date "2025.09.26"]
[Round "10.4"]
[White "Johnson, Daniel"]
[Black "Berovski, Krum"]
[Result "1-0"]
[TimeControl "3 min + 2 sec/move"]
[WhiteElo "2177"]
[BlackElo "2344"]

1. d4 {[%clk 00:03:02]} {[%emt 00:00:02]} Nf6 {[%clk 00:03:03]} 2. c4 {[%clk
00:03:03]} e6 {[%clk 00:03:05]} {[%emt 00:00:01]} 3. Nc3 {[%clk 00:03:04]} Bb4
{[%clk 00:03:06]} {[%emt 00:00:02]} 4. Qc2 {[%clk 00:03:05]} O-O {[%clk
00:03:06]} {[%emt 00:00:02]} 5. Nf3 {[%clk 00:03:06]} c5 {[%clk 00:03:04]}
{[%emt 00:00:04]} 6. dxc5 {[%clk 00:03:06]} {[%emt 00:00:02]} Na6 {[%clk
00:03:05]} 7. g3 {[%clk 00:03:07]} {[%emt 00:00:01]} Nxc5 {[%clk 00:03:06]}
{[%emt 00:00:02]} 8. Bg2 {[%clk 00:03:08]} Nce4 {[%clk 00:03:02]} {[%emt
00:00:06]} 9. O-O {[%clk 00:03:08]} {[%emt 00:00:02]} Bxc3 {[%clk 00:03:02]}
{[%emt 00:00:03]} 10. bxc3 {[%clk 00:03:08]} d5 {[%clk 00:03:01]} {[%emt
00:00:03]} 11. cxd5 {[%clk 00:02:20]} {[%emt 00:00:50]} exd5 {[%clk 00:03:01]}
{[%emt 00:00:02]} 12. Nd4 {[%clk 00:02:21]} Bd7 {[%clk 00:02:52]} {[%emt
00:00:10]} 13. Qb2 {[%clk 00:01:55]} {[%emt 00:00:28]} Qc7 {[%clk 00:02:41]}
{[%emt 00:00:14]} 14. Bf4 {[%clk 00:01:31]} {[%emt 00:00:26]} Qxc3 {[%clk
00:02:40]} {[%emt 00:00:03]} 15. Qxc3 {[%clk 00:01:32]} Nxc3 {[%clk 00:02:41]}
{[%emt 00:00:02]} 16. Rfc1 {[%clk 00:01:34]} Rac8 {[%clk 00:02:22]} {[%emt
00:00:21]} 17. e3 {[%clk 00:01:06]} {[%emt 00:00:29]} Nb5 {[%clk 00:01:59]}
{[%emt 00:00:25]} 18. Nb3 {[%clk 00:00:59]} {[%emt 00:00:09]} b6 {[%clk
00:01:44]} {[%emt 00:00:18]} 19. Be5 {[%clk 00:00:53]} {[%emt 00:00:07]} Ne4
{[%clk 00:00:59]} {[%emt 00:00:47]} 20. Bxe4 {[%clk 00:00:47]} {[%emt
00:00:08]} dxe4 {[%clk 00:01:00]} {[%emt 00:00:02]} 21. a4 {[%clk 00:00:48]}
Be6 {[%clk 00:00:17]} {[%emt 00:00:44]} 22. axb5 {[%clk 00:00:46]} {[%emt
00:00:04]} Bxb3 {[%clk 00:00:18]} {[%emt 00:00:01]} 23. Rxc8 {[%clk 00:00:46]}
{[%emt 00:00:02]} Rxc8 {[%clk 00:00:20]} 24. Rxa7 {[%emt 00:00:02]} f6 {[%clk
00:00:19]} {[%emt 00:00:02]} 25. Rc7 {[%clk 00:00:30]} {[%emt 00:00:17]} Ra8
{[%clk 00:00:12]} {[%emt 00:00:10]} 26. Bd4 {[%clk 00:00:31]} {[%emt 00:00:02]}
Bd1 {[%clk 00:00:07]} {[%emt 00:00:06]} 27. g4 {[%clk 00:00:13]} {[%emt
00:00:19]} Bxg4 {[%clk 00:00:06]} {[%emt 00:00:05]} 28. Kg2 {[%clk 00:00:13]}
Ra5 {[%clk 00:00:05]} {[%emt 00:00:04]} 29. Bxb6 {[%clk 00:00:06]} {[%emt
00:00:10]} Rxb5 {[%clk 00:00:04]} {[%emt 00:00:02]} 30. Bd4 {[%clk 00:00:06]}
1-0

[Event "Blixt-SM 2025"]
[Site "Norrköping, Sweden"]
[Date "2025.09.26"]
[Round "11.10"]
[White "Israelsson, Lukas"]
[Black "Nygren, Kim"]
[Result "0-1"]
[TimeControl "3 min + 2 sec/move"]
[BlackTitle "CM"]
[WhiteElo "1975"]
[BlackElo "2173"]

1. e4 {[%clk 00:03:03]} c5 {[%clk 00:03:01]} {[%emt 00:00:04]} 2. Nf3 {[%clk
00:03:03]} {[%emt 00:00:02]} d6 {[%clk 00:03:01]} {[%emt 00:00:01]} 3. d4
{[%clk 00:03:04]} {[%emt 00:00:02]} cxd4 {[%clk 00:03:02]} {[%emt 00:00:01]} 4.
Nxd4 {[%clk 00:03:04]} Nf6 {[%clk 00:03:03]} {[%emt 00:00:01]} 5. Nc3 {[%clk
00:03:05]} a6 {[%clk 00:03:04]} {[%emt 00:00:02]} 6. h3 {[%clk 00:03:06]} e5
{[%clk 00:03:04]} 7. Nf3 {[%clk 00:03:07]} {[%emt 00:00:01]} Be6 {[%clk
00:03:05]} {[%emt 00:00:02]} 8. Ng5 {[%clk 00:03:08]} {[%emt 00:00:01]} Qd7
{[%clk 00:02:58]} {[%emt 00:00:09]} 9. Nxe6 {[%clk 00:03:05]} {[%emt 00:00:05]}
Qxe6 {[%clk 00:02:52]} {[%emt 00:00:08]} 10. Nd5 {[%clk 00:02:50]} {[%emt
00:00:17]} Nxd5 {[%clk 00:02:51]} {[%emt 00:00:03]} 11. exd5 {[%clk 00:02:48]}
{[%emt 00:00:04]} Qg6 {[%clk 00:02:46]} {[%emt 00:00:08]} 12. Be3 {[%clk
00:02:30]} {[%emt 00:00:18]} Be7 {[%clk 00:02:40]} {[%emt 00:00:08]} 13. Qg4
{[%clk 00:02:03]} {[%emt 00:00:28]} f5 {[%clk 00:02:27]} {[%emt 00:00:17]} 14.
Qa4+ {[%clk 00:01:49]} {[%emt 00:00:16]} Kf7 {[%clk 00:02:11]} {[%emt
00:00:17]} 15. g4 {[%clk 00:01:28]} {[%emt 00:00:24]} f4 {[%clk 00:02:02]}
{[%emt 00:00:11]} 16. Bd3 {[%clk 00:01:21]} {[%emt 00:00:09]} Qf6 {[%clk
00:02:01]} {[%emt 00:00:03]} 17. Bb6 {[%clk 00:01:16]} {[%emt 00:00:07]} Bd8
{[%clk 00:01:55]} {[%emt 00:00:09]} 18. Bxd8 {[%clk 00:01:12]} {[%emt
00:00:05]} Qxd8 {[%clk 00:01:52]} {[%emt 00:00:05]} 19. Bf5 {[%clk 00:01:11]}
{[%emt 00:00:02]} g6 {[%clk 00:01:49]} {[%emt 00:00:05]} 20. Be6+ {[%clk
00:01:12]} Kg7 {[%clk 00:01:51]} 21. h4 {[%clk 00:01:07]} {[%emt 00:00:09]} b5
{[%clk 00:01:43]} {[%emt 00:00:09]} 22. Qe4 {[%clk 00:01:07]} {[%emt 00:00:02]}
Nd7 {[%clk 00:01:40]} {[%emt 00:00:06]} 23. h5 {[%clk 00:01:06]} {[%emt
00:00:03]} Nc5 {[%clk 00:01:28]} {[%emt 00:00:13]} 24. Qf3 {[%clk 00:01:01]}
{[%emt 00:00:07]} Qf6 {[%clk 00:01:11]} {[%emt 00:00:19]} 25. O-O-O {[%clk
00:00:51]} {[%emt 00:00:12]} e4 {[%clk 00:01:00]} {[%emt 00:00:14]} 26. Qc3
{[%clk 00:00:43]} {[%emt 00:00:10]} Qxc3 {[%clk 00:00:56]} {[%emt 00:00:06]} 27.
bxc3 {[%clk 00:00:44]} {[%emt 00:00:01]} Kf6 {[%clk 00:00:55]} {[%emt
00:00:03]} 28. hxg6 {[%clk 00:00:39]} {[%emt 00:00:06]} hxg6 {[%clk 00:00:56]}
{[%emt 00:00:02]} 29. Rxh8 {[%clk 00:00:37]} {[%emt 00:00:04]} Rxh8 {[%clk
00:00:57]} 30. Rd4 {[%clk 00:00:36]} {[%emt 00:00:03]} Rh2 {[%clk 00:00:43]}
{[%emt 00:00:16]} 31. f3 {[%clk 00:00:36]} {[%emt 00:00:03]} Re2 {[%clk
00:00:32]} {[%emt 00:00:13]} 32. Kd1 {[%clk 00:00:31]} {[%emt 00:00:06]} Re3
{[%clk 00:00:28]} {[%emt 00:00:05]} 33. fxe4 {[%clk 00:00:31]} {[%emt
00:00:02]} Nxe4 {[%clk 00:00:28]} {[%emt 00:00:03]} 34. Kc1 {[%clk 00:00:18]}
{[%emt 00:00:15]} f3 {[%clk 00:00:26]} {[%emt 00:00:04]} 35. g5+ {[%clk
00:00:18]} {[%emt 00:00:02]} Kxg5 {[%clk 00:00:23]} {[%emt 00:00:05]} 36. Bc8
{[%clk 00:00:16]} {[%emt 00:00:03]} f2 {[%clk 00:00:22]} {[%emt 00:00:03]} 37.
Rd1 {[%clk 00:00:15]} {[%emt 00:00:03]} Re1 {[%clk 00:00:22]} {[%emt 00:00:02]}
38. Bh3 {[%clk 00:00:15]} {[%emt 00:00:02]} Nxc3 {[%clk 00:00:21]} {[%emt
00:00:03]} 39. Kd2 {[%clk 00:00:11]} {[%emt 00:00:07]} Rxd1+ {[%clk 00:00:21]}
{[%emt 00:00:02]} 40. Kxc3 {[%clk 00:00:12]} f1=Q {[%clk 00:00:21]} {[%emt
00:00:02]} 41. Bxf1 {[%clk 00:00:12]} {[%emt 00:00:01]} Rxf1 {[%clk 00:00:22]}
{[%emt 00:00:02]} 42. Kb4 {[%clk 00:00:13]} Rc1 {[%clk 00:00:22]} {[%emt
00:00:02]} 43. Ka5 {[%clk 00:00:14]} Rxc2 {[%clk 00:00:22]} 44. Kxa6 {[%clk
00:00:15]} {[%emt 00:00:01]} Rxa2+ {[%clk 00:00:23]} {[%emt 00:00:01]} 45. Kxb5
{[%clk 00:00:16]} {[%emt 00:00:02]} Rc2 {[%clk 00:00:24]} 0-1